[Event "Icelandic Chess-ch 2023"]
[Site "Hafnarfjordur"]
[Date "2023.05.17"]
[Round "3.2"]
[White "Thorfinnsson, Bragi"]
[Black "Domalchuk-Jonasson, Aleksandr"]
[Result "0-1"]
[ECO "D27"]
[WhiteElo "2431"]
[BlackElo "2338"]
[Annotator "TA"]
[PlyCount "146"]
[EventDate "2023.05.13"]
[EventType "tourn"]
[EventCountry "ISL"]
[SourceTitle "playchess.com"]
[Source "ChessBase"]
[SourceQuality "1"]
[TimeControl "40/5400+30:1800+30"]

{[%evp 13,146,8,54,22,25,27,25,24,16,27,98,-33,25,-27,-10,-30,0,-24,-33,-85,-64,-56,-62,-92,-81,-193,-121,-117,-118,-116,-122,-115,-122,-108,-122,-122,-119,-126,-127,-131,-133,-243,-197,-367,-243,-295,-131,-154,-115,-126,-112,-160,-154,-173,-148,-282,-279,-529,-501,-499,-491,-445,-222,-234,-228,-236,-241,-408,-254,-600,-542,-535,-253,-255,-214,-268,-265,-245,-249,-249,-237,-227,-188,-205,-200,-200,-173,-202,-183,-201,-197,-188,-188,-186,-174,-184,-191,-237,-233,-270,-250,-257,-251,-286,0,-339,-229,-342,-340,-294,-273,-258,-257,-263,-156,-303,-213,-345,-338,-320,-235,-240,-197,-282,-298,-515,-591,-820,-849,-823,-828,-29983,-29984,-29984,-29985]} 1. Nf3 {[%emt 0:00:34]} d5 {[%emt 0:00:54]} 2. e3 {[%emt 0:00:26]} Nf6 {[%emt 0:01:00]} 3. c4 {[%emt 0:00:31]} dxc4 {[%emt 0:01:45]} 4. Bxc4 {[%emt 0:00:48]} e6 {[%emt 0:00:13]} 5. d4 {[%emt 0:03:59]} c5 {[%emt 0:01:09]} 6. O-O {[%emt 0:00:09]} a6 {[%emt 0:00:36]} 7. Bb3 {[%emt 0:01:15]} Nbd7 {[%emt 0:03:25]} (7... Nc6 $11) 8. Nc3 {[%emt 0:04:32] 8.Qe2 gains popularity. D27: Queen's Gambit Accepted: Classical main line: 7 e4!? and 7 a4.} b5 {[%emt 0:02:15]} 9. e4 {[%emt 0:06:55] e5 is the strong threat.} cxd4 {[%emt 0:05:26]} 10. Qxd4 {[%emt 0:04:20] And now e5 would win. White has an edge.} Bc5 {[%emt 0:01:03] Dodges e5} 11. Qd3 {[%emt 0:01:10] [#]} b4 $146 {[%emt 0:18:45]} (11... Qc7 $11 {keeps the balance.}) ({Predecessor:} 11... Qc7 12. Bg5 Bb7 13. Rac1 O-O 14. Rfd1 Ne5 15. Nxe5 Qxe5 16. Bh4 b4 17. Bg3 Bxf2+ 18. Kxf2 {½-½ Costachi,M (2463)-Aronyak,G (2380) Wch U20 58th 2019 (3)}) 12. Ne2 {[%emt 0:05:00]} (12. e5 $1 $16 {[%cal Re5f6]} bxc3 13. exf6 Qxf6 14. Bg5 {[%mdl 64] Deflection} (14. bxc3 O-O $14) (14. Qxc3 Qxc3 15. bxc3 O-O $11)) 12... Bb7 {[%emt 0:07:37]} ({Black should try} 12... Qb6 $1 $15) 13. Ng3 {[%emt 0:00:49]} (13. e5 $142 $1 Nd5 14. Bd2) 13... Qb6 {[%emt 0:04:37]} 14. Ba4 {[%emt 0:05:14]} (14. e5 $5 {[%cal Re5f6]} Ng4 15. Ne4 $11) 14... Rd8 {[%emt 0:08:43]} (14... O-O $5 {[%cal Rf8d8]}) 15. Bg5 {[%emt 0:17:48] Threatens to win with e5.} (15. e5 $5 {[%cal Re5f6]} Ng4 16. Qe2 $11 (16. Bg5 Nxf2 17. Qc4 O-O $17)) 15... O-O {[%emt 0:04:04]} 16. Qe2 {[%emt 0:00:34]} (16. Bxd7 $15 Rxd7 17. Qe2) 16... h6 $17 {[%emt 0:04:29]} 17. Bh4 {[%emt 0:08:21]} Be7 {[%emt 0:04:15]} 18. Bxd7 {[%emt 0:08:17]} Rxd7 {[%emt 0:00:13]} 19. Ne5 {[%emt 0:00:08]} (19. Bxf6 $17 Bxf6 20. Nh5) 19... Rc7 {[%emt 0:03:28]} ({Black should play} 19... g5 $1 $19 20. Nxd7 Nxd7) 20. Ng4 {[%emt 0:06:40]} Nxg4 {[%emt 0:04:13]} (20... Nxe4 $6 21. Bxe7 Nxg3 22. Nxh6+ Kh8 23. hxg3 $11) 21. Bxe7 {[%emt 0:03:59]} Nxh2 {[%emt 0:03:50]} (21... Rxe7 22. Qxg4 f5 23. exf5 $15) 22. Bxf8 {[%emt 0:04:03]} Nxf1 {[%emt 0:00:09] Black is more active.} 23. Rxf1 {[%emt 0:02:02][%cal Of8g7] Hoping for Bxg7!} Kxf8 {[%emt 0:00:05]} 24. Rd1 {[%emt 0:00:16]} Rc8 {[%emt 0:02:23] Wards off Rd8+} 25. Qd2 {[%emt 0:02:16]} a5 {[%emt 0:01:23]} 26. Qf4 {[%emt 0:01:37] White wants to mate with Rd7.} Qc7 {[%emt 0:01:47] Prevents Rd7} 27. e5 {[%emt 0:03:19]} (27. Qe3 $17) 27... Bd5 {[%emt 0:04:07]} 28. Nh5 $2 {[%emt 0:01:02]} (28. Nf5) 28... Qd8 {[%emt 0:04:56]} (28... Bxa2 $2 {perishes.} 29. Qg3 f5 30. Ra1 $19) 29. Qe3 {[%emt 0:04:10]} Qe7 {[%emt 0:02:32]} (29... Qg5 $19 {[%csl Gd5][%cal Rg5g2] has better winning chances.} 30. Nf4 Bxa2) 30. a3 {[%emt 0:00:37]} bxa3 $40 {[%emt 0:04:06][%mdl 128] Black is out for blood.} 31. bxa3 {[%emt 0:00:08]} a4 {[%emt 0:01:01]} 32. Nf4 {[%emt 0:01:54] [#]} (32. Rd4 $142) 32... Bb3 $1 {[%emt 0:00:24]} 33. Rd6 {[%emt 0:00:21]} Qc7 {[%emt 0:00:26]} 34. Qe4 {[%emt 0:02:37]} (34. Kh2 $17) 34... Kg8 {[%emt 0:00:27]} 35. Nh5 $2 {[%emt 0:01:00]} (35. Nd3 {was called for.}) 35... Qc1+ $19 {[%emt 0:00:40]} 36. Kh2 {[%emt 0:00:04]} Qg5 {[%emt 0:00:09]} (36... Qxa3 37. Qg4 g6 38. Nf6+ Kg7 39. Qf3 $16) 37. Ng3 {[%emt 0:00:52]} h5 {[%emt 0:01:33]} (37... Bd5 $142 38. Qe3 Qh4+ 39. Kg1 Qg4) 38. Rd4 {[%emt 0:00:53]} g6 {[%emt 0:00:37]} 39. Rb4 {[%emt 0:00:47]} Kg7 {[%emt 0:00:28][%cal Oh5h4]} 40. Kh3 $2 {[%emt 0:00:29]} (40. Qd4) 40... Rc5 {[%emt 0:00:33]} 41. Qa8 $2 {[%emt 0:03:21]} (41. f3) 41... Bd5 {[%emt 0:15:39]} 42. Qxa4 {[%emt 0:01:44]} Qxe5 {[%emt 0:01:51]} (42... Rc1 $142 {[%cal Oc1h1] ( -> ...Rh1+!)} 43. Re4 Bxe4 44. Qxe4 Rc5) 43. Qe8 {[%emt 0:05:49]} Bc6 {[%emt 0:01:03]} ({Don't blunder} 43... Rc3 $2 44. Rb8 Kh6 45. f3 $19) 44. Qe7 {[%emt 0:00:59]} Rc2 {[%emt 0:00:45]} 45. f3 {[%emt 0:03:11]} Qc5 {[%emt 0:07:57] Wards off a4} 46. Qxc5 {[%emt 0:03:48]} Rxc5 {[%emt 0:00:05][%mdl 4096] Endgame KRB-KRN} 47. Ne2 {[%emt 0:00:09]} Ra5 {[%emt 0:00:35]} 48. Rb3 {[%emt 0:00:14]} Bd5 {[%emt 0:00:28]} 49. Rc3 {[%emt 0:00:20]} Ra4 {[%emt 0:00:13]} 50. Kg3 {[%emt 0:00:14]} Kf6 {[%emt 0:00:09]} 51. Kf2 {[%emt 0:00:16]} g5 {[%emt 0:00:27]} 52. Re3 {[%emt 0:00:54]} Ra8 {[%emt 0:02:30]} 53. Nc3 {[%emt 0:00:24]} Bc6 {[%emt 0:00:13]} (53... Rxa3 $2 54. Nxd5+ exd5 55. Rxa3 $18) 54. Ne2 {[%emt 0:01:25]} Rb8 {[%emt 0:00:22]} 55. Nd4 {[%emt 0:01:21]} (55. f4 $142) 55... Bd5 {[%emt 0:00:23]} 56. Rc3 {[%emt 0:02:06]} Rb2+ {[%emt 0:00:18]} 57. Rc2 {[%emt 0:00:19]} Rb1 {[%emt 0:00:15]} 58. Rc7 {[%emt 0:01:09]} Rb2+ $2 {[%emt 0:02:23]} (58... h4 $19 {Strongly threatening ...Ke5.} 59. Rc2 Ra1) 59. Kg3 $2 {[%emt 0:00:50][%mdl 8192]} (59. Rc2 $11 Rb1 60. Kg3) 59... Ke5 {[%emt 0:00:53]} 60. Nc2 {[%emt 0:00:16]} (60. Rc2 $142 Rb6 61. Ne2) 60... Kd6 {[%emt 0:00:09]} 61. Rc8 {[%emt 0:00:33]} Kd7 {[%emt 0:03:44]} 62. Rc5 {[%emt 0:00:11]} Rb3 {[%emt 0:00:18] Against Ne3} 63. Ra5 {[%emt 0:01:01]} Ke7 {[%emt 0:01:00]} (63... f5 $19 {White must now prevent ...f4+.} 64. Nb4 Kd6 65. Nxd5 exd5) 64. a4 {[%emt 0:02:20]} (64. Nb4 $17 {was necessary.}) 64... Kf6 {[%emt 0:00:18]} 65. Rc5 {[%emt 0:00:37] [#]} (65. Rb5 $142) 65... g4 $1 {[%emt 0:00:41][%cal Rg4f3]} 66. Ne1 {[%emt 0:01:07]} Ra3 {[%emt 0:00:13]} 67. a5 {[%emt 0:00:14]} Ke5 {[%emt 0:00:31]} 68. Nc2 {[%emt 0:00:45]} (68. Rc8 $142) 68... Ra4 {[%emt 0:00:42][%cal Oh5h4]} 69. Rb5 $2 {[%emt 0:00:33] [#]} (69. f4+ Rxf4 70. Ne3) 69... h4+ $1 {[%emt 0:00:18][%cal Bh5h4,Bh4h3][%mdl 544]} 70. Kf2 {[%emt 0:01:17]} (70. Kh2 gxf3) 70... Ra2 {[%emt 0:00:21]} 71. Rc5 {[%emt 0:00:05]} Kf4 {[%emt 0:00:39]} 72. Ke1 {[%emt 0:01:11]} gxf3 {[%emt 0:00:10][%mdl 64] Overworked Piece} 73. gxf3 {[%emt 0:00:03]} h3 {[%emt 0:00:20] Weighted Error Value: White=0.57/Black=0.38} 0-1

[Event "Icelandic Chess-ch 2023"]
[Site "Hafnarfjordur"]
[Date "2023.05.17"]
[Round "3.3"]
[White "Stefansson, Hannes"]
[Black "Danielsen, Henrik"]
[Result "1-0"]
[ECO "C42"]
[WhiteElo "2521"]
[BlackElo "2501"]
[Annotator "TA"]
[PlyCount "78"]
[EventDate "2023.05.13"]
[EventType "tourn"]
[EventCountry "ISL"]
[SourceTitle "playchess.com"]
[Source "ChessBase"]
[SourceQuality "1"]
[TimeControl "40/5400+30:1800+30"]

{[%evp 16,78,24,18,20,17,14,12,17,21,21,20,20,16,22,18,29,24,31,23,20,16,21,18,16,12,14,19,31,14,18,16,25,5,14,16,45,45,40,28,45,17,34,38,37,0,39,42,50,30,44,49,219,234,423,432,450,461,747,737,629,605,568,531,885]} 1. e4 {[%emt 0:00:10]} e5 {[%emt 0:00:14]} 2. Nf3 {[%emt 0:00:26]} Nf6 {[%emt 0:00:11]} 3. Nxe5 {[%emt 0:00:52]} d6 {[%emt 0:00:16]} 4. Nf3 {[%emt 0:00:30]} Nxe4 {[%emt 0:00:15]} 5. Nc3 {[%emt 0:00:53]} Nxc3 {[%emt 0:02:34]} 6. dxc3 {[%emt 0:00:04]} Be7 {[%emt 0:00:54]} 7. Bf4 {[%emt 0:01:03]} Nc6 {[%emt 0:05:39]} 8. Qd2 {[%emt 0:01:34]} Be6 {[%emt 0:00:51]} 9. O-O-O {[%emt 0:01:12]} Qd7 {[%emt 0:00:12] C42: Petroff Defence: 3 Nxe5 and unusual White 3rd moves.} (9... Bxa2 $2 10. b3 $16) 10. Kb1 {[%emt 0:00:50]} Bf6 {[%emt 0:04:19]} 11. Ng5 {[%emt 0:22:38]} Bxg5 {[%emt 0:00:50] The position is equal.} 12. Bxg5 {[%emt 0:00:06]} f6 {[%emt 0:00:22]} 13. Be3 {[%emt 0:01:50]} O-O-O {[%emt 0:01:00] [#]} 14. b3 $1 $146 {[%emt 0:06:41][%mdl 8] A relevant novelty.} ({Predecessor:} 14. f3 Rde8 15. Bf2 Bf7 16. Bb5 a6 17. Bxc6 Qxc6 18. Rhe1 Rxe1 19. Rxe1 Re8 20. Rxe8+ Qxe8 21. b3 Bg6 22. Qe3 Qxe3 23. Bxe3 Kd7 {½-½ Ni,H (2667)-Bu,X (2698) Yinzhou Cup Chess.com INT rapid 2022 (2)}) 14... Kb8 {[%emt 0:01:37]} 15. f3 {[%emt 0:11:29]} Qf7 {[%emt 0:04:45]} 16. Bf2 {[%emt 0:03:27]} Rhe8 {[%emt 0:02:36]} 17. Bb5 {[%emt 0:09:01]} Bd7 {[%emt 0:00:34]} 18. h3 {[%emt 0:05:45]} Re7 {[%emt 0:02:37]} 19. Rhe1 {[%emt 0:02:06]} Rde8 {[%emt 0:01:15]} 20. Rxe7 {[%emt 0:01:02]} Rxe7 {[%emt 0:00:30]} 21. Kb2 {[%emt 0:06:47]} Ne5 {[%emt 0:02:20]} 22. Bf1 {[%emt 0:03:27]} h6 {[%emt 0:02:51]} 23. a4 {[%emt 0:02:57][%cal Ba2a4,Ba4a5,Ba5a6][%mdl 32]} Nc6 {[%emt 0:03:56]} 24. g3 {[%emt 0:02:27]} Qe8 {[%emt 0:04:49]} 25. f4 {[%emt 0:02:18]} Bf5 {[%emt 0:02:25] [#]} 26. a5 $1 {[%emt 0:01:53]} Be4 {[%emt 0:04:58]} 27. a6 {[%emt 0:01:20] axb7 is the strong threat.} b6 {[%emt 0:03:02]} 28. g4 {[%emt 0:04:24]} Bf3 {[%emt 0:03:58]} 29. Ra1 {[%emt 0:01:59]} Nd8 {[%emt 0:01:13]} 30. c4 {[%emt 0:01:56][%cal Bc3c4,Bc4c5,Bc5b6,Bb6c7][%mdl 32]} Nf7 {[%emt 0:09:13]} 31. Qc3 {[%emt 0:00:34]} Ba8 {[%emt 0:01:26][%cal Oh6h5]} 32. b4 {[%emt 0:01:13]} Re4 {[%emt 0:03:06]} 33. c5 {[%emt 0:00:57]} Bc6 $2 {[%emt 0:22:24] [#] This move loses the game for Black.} ({Better is} 33... dxc5 $14 34. bxc5 Bc6) 34. cxb6 $18 {[%emt 0:00:23]} Rxf4 $2 {[%emt 0:06:22]} (34... cxb6 {is a better defense.} 35. Bg2 Rxf4) 35. bxc7+ {[%emt 0:00:31] White is clearly winning.} ({Weaker is} 35. bxa7+ Ka8 $18) 35... Kc8 {[%emt 0:00:32]} 36. Bxa7 {[%emt 0:00:39][%cal Bf2a7,Ba7b6,Bb6e3][%mdl 32] This pair of bishops is nice.} Ne5 {[%emt 0:01:16]} (36... Qe5 $142 37. Qxe5 {[%mdl 64] Remove Defender} Nxe5) 37. Bb6 {[%emt 0:00:35]} Ba8 {[%emt 0:01:08]} 38. Be3 {[%emt 0:01:48]} ({Stronger than} 38. a7 Rxf1 39. Rxf1 Qb5 $11) 38... Rf3 {[%emt 0:02:26][%cal Of3e3]} 39. Re1 {[%emt 0:00:26]} Bd5 {[%emt 0:00:36] Artfully played by Stefansson.   Weighted Error Value: White=0.07 (flawless) /Black=0.23 (precise)} 1-0

[Event "Icelandic Chess-ch 2023"]
[Site "Hafnarfjordur"]
[Date "2023.05.17"]
[Round "3.4"]
[White "Heimisson, Hilmir Freyr"]
[Black "Ragnarsson, Dagur"]
[Result "1/2-1/2"]
[ECO "C71"]
[WhiteElo "2353"]
[BlackElo "2346"]
[Annotator "TA"]
[PlyCount "118"]
[EventDate "2023.05.13"]
[EventType "tourn"]
[EventCountry "ISL"]
[SourceTitle "playchess.com"]
[Source "ChessBase"]
[SourceQuality "1"]
[TimeControl "40/5400+30:1800+30"]

{[%evp 15,118,0,0,-34,0,0,0,0,0,-52,-49,-57,-57,-59,-16,-44,-43,-43,-39,-60,-14,-28,-20,-12,0,0,8,0,22,0,0,0,12,0,7,6,10,0,17,23,27,-19,-6,-3,54,60,48,39,117,0,0,-43,-45,-745,-736,-881,0,0,0,0,0,0,13,13,43,0,0,0,0,0,0,-61,-40,-22,-29,-14,0,0,0,0,0,-48,0,0,0,0,0,0,0,0,0,0,0,0,0,0,0,0,0,0,0,0,0,0,0]} 1. e4 {[%emt 0:00:04]} e5 {[%emt 0:00:07]} 2. Nf3 {[%emt 0:00:08]} Nc6 {[%emt 0:00:05]} 3. Bb5 {[%emt 0:00:09]} a6 {[%emt 0:00:06]} 4. Ba4 {[%emt 0:00:05]} d6 {[%emt 0:00:06]} 5. d4 {[%emt 0:02:51]} b5 {[%emt 0:00:15]} 6. Bb3 {[%emt 0:00:06]} Nxd4 {[%emt 0:00:19]} 7. Nxd4 {[%emt 0:00:09]} exd4 {[%emt 0:00:05]} 8. c3 {[%emt 0:01:16]} dxc3 {[%emt 0:00:10]} 9. Qh5 {[%emt 0:14:22][%csl Gb3][%cal Rh5f7] [#] C71: Ruy Lopez: Deferred Steinitz Variation, sidelines.} (9. Qd5 $5 Be6 $8 10. Qc6+ Bd7 11. Qd5 $11) 9... g6 {[%emt 0:06:50]} 10. Qd5 {[%emt 0:00:08][%csl Gb3][%cal Rd5f7]} Be6 {[%emt 0:00:05]} 11. Qc6+ {[%emt 0:00:06]} Bd7 {[%emt 0:00:06]} 12. Qxc3 {[%emt 0:00:05]} (12. Qd5 $11 Be6 13. Qc6+ Bd7 14. Qd5 Be6) 12... Qf6 {[%emt 0:03:02] [#]} 13. Qa5 $146 {[%emt 0:05:32]} ({Predecessor:} 13. a4 bxa4 14. Bxa4 Qxc3+ 15. Nxc3 Ne7 16. Bb5 Bxb5 17. Nxb5 Kd7 18. Bg5 Bg7 19. Nc3 {0-1 Ertan,C (2400)-Souleidis,G (2427) Lueneburg IM 2019 (5)}) 13... Bg7 {[%emt 0:19:57]} 14. Nc3 {[%emt 0:08:12]} Qd8 {[%emt 0:13:17]} 15. a4 {[%emt 0:15:19]} bxa4 {[%emt 0:13:58]} 16. Bxa4 {[%emt 0:03:55]} Ne7 {[%emt 0:04:10]} 17. Bg5 {[%emt 0:05:05]} f6 {[%emt 0:05:51]} (17... Bxa4 $15 {is more appropriate.} 18. Rxa4 (18. Qxa4+ Qd7 $15) 18... O-O) 18. Be3 {[%emt 0:00:07]} O-O {[%emt 0:03:01]} 19. O-O {[%emt 0:00:32]} Bxa4 {[%emt 0:02:22]} 20. Qxa4 {[%emt 0:00:52]} Kh8 {[%emt 0:07:31]} 21. Qc4 {[%emt 0:00:07][%cal Ob2b4]} Qc8 {[%emt 0:01:32]} 22. Rfc1 {[%emt 0:06:09][%mdl 1024] White has compensation.} Qb7 {[%emt 0:01:32]} 23. h4 {[%emt 0:00:57]} c6 {[%emt 0:02:22]} 24. Qe6 {[%emt 0:15:23]} d5 {[%emt 0:03:31]} 25. Bc5 {[%emt 0:00:56] Black is weak on the dark squares} Rae8 {[%emt 0:00:16][%cal Oe7f5] ...Nf5! would be deadly.} 26. Qh3 $36 {[%emt 0:00:23][%mdl 2048] Inhibits Nf5. White fights for an advantage.} f5 {[%emt 0:03:10]} 27. exd5 {[%emt 0:00:42]} cxd5 {[%emt 0:00:05]} 28. h5 {[%emt 0:10:57]} (28. Qd3 {is superior.}) 28... gxh5 $11 {[%emt 0:00:44]} 29. Ne2 {[%emt 0:00:17][%cal Oe2f4]} f4 {[%emt 0:01:58]} (29... Bxb2 $2 30. Rab1 Kg8 31. Rc2 $18) ({Better is} 29... Rg8 $11) 30. Nd4 $14 {[%emt 0:02:19]} Rg8 {[%emt 0:03:56]} (30... Qxb2 $2 31. Rab1 Bxd4 32. Rxb2 Bxb2 33. Re1 $18) 31. Qxh5 {[%emt 0:02:12] aiming for Ne6.} Ng6 {[%emt 0:02:57] [#]} (31... Bf6 $14) 32. Nf3 {[%emt 0:00:08] White is more active.} ({Only move:} 32. Nf5 $1 $16 {[%cal Rf5d6]}) 32... Bf6 $11 {[%emt 0:00:46]} (32... Qxb2 $2 33. Ng5 $18) (32... Bxb2 $2 33. Rab1 Qg7 34. Rxb2 $18) 33. Rd1 {[%emt 0:03:48][%cal Oa1a4]} Ne5 {[%emt 0:00:35] Hoping for ...d4.} (33... Bxb2 34. Rab1 (34. Qxd5 $2 Qxd5 35. Rxd5 Bxa1 $19) 34... Qc7 35. Rxd5 $18 (35. Qxd5 Rd8 $16) (35. Rxb2 Qxc5 36. Rb7 Re7 $14)) 34. Re1 $2 {[%emt 0:02:39][%mdl 8192] Prevents d4} (34. Ne1 $15) 34... Qg7 $19 {[%emt 0:01:14][%csl Gg8][%cal Rg7g2]} ({Stronger than} 34... Qxb2 35. Rad1 Nxf3+ 36. Qxf3 $17) 35. Qh3 {[%emt 0:00:50]} Nd3 $2 {[%emt 0:00:34]} ({Black should try} 35... Qxg2+ $1 $19 36. Qxg2 Nxf3+ {[%mdl 64] Discovered Attack} 37. Kh1 Rxe1+ 38. Rxe1 Rxg2 39. Re8+ Rg8) 36. Rxe8 $11 {[%emt 0:00:23]} Rxe8 {[%emt 0:00:04]} 37. Bb6 {[%emt 0:00:50]} Qb7 {[%emt 0:01:39]} 38. Qf5 {[%emt 0:00:33][%csl LRd3,LRf6]} Qxb6 {[%emt 0:00:08]} (38... Nxb2 $2 39. Qxf6+ Qg7 40. Qc6 $18) 39. Qxd3 {[%emt 0:00:08]} a5 {[%emt 0:00:41][%cal Ba6a5,Ba5a4][%mdl 32]} 40. Rd1 {[%emt 0:00:58]} Qxb2 {[%emt 0:00:29]} 41. Rb1 $1 {[%emt 0:03:55]} Qe2 {[%emt 0:00:31]} 42. Qxd5 {[%emt 0:04:08]} Qe4 {[%emt 0:01:49]} 43. Qb5 {[%emt 0:06:31]} (43. Qa2 $11) 43... Rg8 {[%emt 0:06:15]} 44. Rb3 {[%emt 0:02:04]} a4 {[%emt 0:09:42]} 45. Ra3 $1 {[%emt 0:00:23]} Ra8 {[%emt 0:00:21]} (45... Bd4 {feels hotter.} 46. Rd3 Qg6 47. Ne1 Qe8) 46. Kh2 {[%emt 0:04:41]} Be7 {[%emt 0:07:10]} 47. Nd2 {[%emt 0:00:26]} Qd4 {[%emt 0:02:16]} 48. Rd3 {[%emt 0:00:46]} (48. Nf3 $11 Qe4 49. Nd2) 48... Qc5 {[%emt 0:00:48]} (48... Qxf2 $2 49. Qe5+ Kg8 50. Qxe7 $18) (48... Qg7 $15 {should be considered.} 49. Qc6 Rg8) 49. Qb7 {[%emt 0:00:58] The position is equal.} Rd8 {[%emt 0:01:33]} 50. Qb2+ {[%emt 0:06:58]} Kg8 {[%emt 0:00:05]} 51. Ne4 {[%emt 0:00:57]} Qc6 {[%emt 0:02:25]} 52. Rxd8+ {[%emt 0:02:52]} Bxd8 {[%emt 0:00:05][%mdl 4096] Endgame KQB-KQN} 53. Qb4 {[%emt 0:01:40]} a3 {[%emt 0:02:14] Threatens to win with ...a2.} 54. Nd6 {[%emt 0:00:21]} Qd5 {[%emt 0:01:10] Prevents Qb3. Strongly threatening ...Be7.} (54... a2 $2 55. Qb3+ (55. Qxf4 $2 {loses.} Qd5 $19) 55... Kg7 56. Qf7+ Kh6 57. Qxf4+ Kg7 58. Qf7+ Kh6 59. Nf5+ Kg5 60. f4+ {[%mdl 64] Decoy, Promotion} (60. Qxh7 $2 a1=Q $19) 60... Kxf4 61. Ne7+ {[%mdl 64] Discovered Attack} (61. Qxh7 $2 {perishes.} a1=Q $19) 61... Ke3 62. Nxc6 $18) (54... Bc7 $5 55. Qb3+ $8 Kh8 $11) 55. Qb8 {[%emt 0:00:33]} Qh5+ {[%emt 0:01:03]} 56. Kg1 {[%emt 0:00:01]} Qd1+ {[%emt 0:00:04]} 57. Kh2 {[%emt 0:00:04]} Qh5+ {[%emt 0:00:13]} 58. Kg1 {[%emt 0:00:03]} Qd1+ {[%emt 0:00:28]} 59. Kh2 {[%emt 0:00:04]} Qh5+ {[%emt 0:00:06] Weighted Error Value: White=0.28 (precise) /Black=0.19 (very precise)} 1/2-1/2